Workbook

Sheet Flexibility Analysis
B2: SUMMARY STATISTICS I
C3: Shortfall (Credits) | D3: Shortfall ($) | E3: Civil Penalty (Credits) | F3: Civil Penalty ($) | G3: %age SF Resolved by CP | H3: %age SF Resolved by Credits
B4: 2011 | C4: 19694045 | D4: =C4*5.5 -> 108317247.5 | E4: 7275140 | F4: =E4*5.5 -> 40013270 | G4: =F4/D4 -> 0.369408113 | H4: =1-G4 -> 0.630591887
B5: 2012 | C5: 41033802 | D5: 225685911 | E5: 2720433 | F5: 14962381.5 | G5: 0.06629736625 | H5: 0.9337026337
B6: 2013 | C6: 35836987 | D6: 197103428.5 | E6: 3876210 | F6: 21319155 | G6: 0.1081622738 | H6: 0.8918377262
B7: 2014 | C7: 46578649 | D7: 256182569.5 | E7: 416325 | F7: 2289787.5 | G7: 0.008938108102 | H7: 0.9910618919
B8: 2015 | C8: 83297682 | D8: 458137251 | E8: 0 | F8: 0 | G8: 0 | H8: 1
B9: 2016 | C9: 183720769 | D9: 1010464230 | E9: 14048855 | F9: 77268702.5 | G9: 0.07646851837 | H9: 0.9235314816
B10: 2017 | C10: 166715863 | D10: 916937246.5 | E10: 14432117 | F10: 79376643.5 | G10: 0.08656714928 | H10: =1-G10 -> 0.9134328507
B11: 2018 | C11: pending | D11: pending | E11: pending | F11: pending | G11: pending | H11: pending
B12: 2019 | C12: pending | D12: pending | E12: pending | F12: pending | G12: pending | H12: pending
B13: 2020 | C13: pending | D13: pending | E13: pending | F13: pending | G13: pending | H13: pending
B14: TOTAL | C14: =SUM(C4:C11) -> 576877797 | D14: =SUM(D4:D11) -> 3172827884 | E14: =SUM(E4:E11) -> 42769080 | F14: =E14*5.5 -> 235229940 | G14: =F14/D14 -> 0.07413889081 | H14: =1-G14 -> 0.9258611092
B15: SUMMARY STATISTICS II
B16: Model Year | C16: Carry Forward | D16: Carry Back | E16: Transfer | F16: Trade | G16: Civil Penalty | H16: Remaining
B17: 2011 | C17: 3151689 | D17: 0 | E17: 0 | F17: 9195320 | G17: 7275140 | H17: 71896
B18: 2012 | C18: 27672796 | D18: 583428 | E18: 0 | F18: 10057145 | G18: 2720433 | H18: 0
B19: 2013 | C19: 21498068 | D19: 0 | E19: 0 | F19: 10462709 | G19: 3876210 | H19: 0
B20: 2014 | C20: 18144480 | D20: 0 | E20: 2594205 | F20: 24860705 | G20: 416325 | H20: 562934
B21: 2015 | C21: 39157449 | D21: 0 | E21: 1397091 | F21: 41917486 | G21: 0 | H21: 825656
B22: 2016 | C22: 36754491 | D22: 0 | E22: 68212135 | F22: 64705291 | G22: 14048855 | H22: 0
B23: 2017 | C23: 32296705 | D23: 0 | E23: 37780657 | F23: 75468335 | G23: 14432117 | H23: 6738049
B24: 2018 | C24: pending | D24: pending | E24: pending | F24: pending | G24: pending | H24: pending
B25: 2019 | C25: pending | D25: pending | E25: pending | F25: pending | G25: pending | H25: pending
B26: 2020 | C26: pending | D26: pending | E26: pending | F26: pending | G26: pending | H26: pending
B27: TOTAL | C27: 178675678 | D27: 583428 | E27: 109984088 | F27: 236666991 | G27: 42769080 | H27: 8198535
B64: From: | C64: CAFE Credit Shortfall Analysis_v37.xlsm
C65: \\NHTSA-NRDDATA.ad.dot.gov\nvspubdocs\NVS\Enforcement\OVSC\CAFE\Credit Tracking Part 536\Analysis\Credit Shortfall Analysis\Shortfall Analysis

Sheet CAFE Contributes
B1: FE Standard | C1: Base CAFE | D1: CAFE w. AMFA Contribution | E1: Final CAFE w ACOC&AMFA
A2: DP
A3: 2011 | B3: 30 | C3: 32 | D3: 32.7 | E3: 32.7
A4: 2012 | B4: 32.7 | C4: 34 | D4: 34.8 | E4: 34.8
A5: 2013 | B5: 33.2 | C5: 35.3 | D5: 36.1 | E5: 36.1
A6: 2014 | B6: 34 | C6: 35.5 | D6: 36.3 | E6: 36.3
A7: 2015 | B7: 35.2 | C7: 36.6 | D7: 37.2 | E7: 37.2
A8: 2016 | B8: 36.5 | C8: 36.8 | D8: 37.3 | E8: 37.3
A9: 2017 | B9: 38.5 | C9: 38 | D9: 38.3 | E9: 39.2
A10: 2018 | B10: 39.6 | C10: 39.9 | D10: 40.2 | E10: 41.7
A11: 2019 | B11: 41.2 | C11: 39.3 | D11: 39.4 | E11: 40.8
A12: 2020 | B12: 42.4 | C12: 41.6 | D12: 41.6 | E12: 43.6
A13: IP
A14: 2011 | B14: 30.4 | C14: 33.5 | D14: 33.7 | E14: 33.7
A15: 2012 | B15: 33.4 | C15: 35.9 | D15: 36 | E15: 36
A16: 2013 | B16: 33.9 | C16: 36.6 | D16: 36.8 | E16: 36.8
A17: 2014 | B17: 34.6 | C17: 36.6 | D17: 36.9 | E17: 36.9
A18: 2015 | B18: 35.8 | C18: 37.1 | D18: 37.3 | E18: 37.3
A19: 2016 | B19: 37.4 | C19: 38 | D19: 38.1 | E19: 38.1
A20: 2017 | B20: 39.6 | C20: 38.6 | D20: 38.6 | E20: 39.7
A21: 2018 | B21: 40.6 | C21: 38.5 | D21: 38.5 | E21: 39.6
A22: 2019 | B22: 42.2 | C22: 39 | D22: 39 | E22: 40.1
A23: 2020 | B23: 44 | C23: 39.3 | D23: 39.3 | E23: 40.7
A24: LT
A25: 2011 | B25: 24.3 | C25: 23.9 | D25: 24.7 | E25: 24.7
A26: 2012 | B26: 25.3 | C26: 24.1 | D26: 25 | E26: 25
A27: 2013 | B27: 25.9 | C27: 24.8 | D27: 25.7 | E27: 25.7
A28: 2014 | B28: 26.3 | C28: 25.5 | D28: 26.5 | E28: 26.5
A29: 2015 | B29: 27.6 | C29: 26.5 | D29: 27.3 | E29: 27.3
A30: 2016 | B30: 28.8 | C30: 26.8 | D30: 27.4 | E30: 27.4
A31: 2017 | B31: 29.4 | C31: 27.4 | D31: 27.8 | E31: 28.6
A32: 2018 | B32: 30 | C32: 27.7 | D32: 28 | E32: 29.4
A33: 2019 | B33: 30.4 | C33: 27.9 | D33: 28.1 | E33: 29.5
A34: 2020 | B34: 31 | C34: 28.6 | D34: 28.6 | E34: 30.1
A35: TOTAL
A36: 2011 | B36: 27.4 | C36: 28.2 | D36: 29 | E36: 29
A37: 2012 | B37: 29.8 | C37: 30 | D37: 30.8 | E37: 30.8
A38: 2013 | B38: 30.3 | C38: 30.9 | D38: 31.6 | E38: 31.6
A39: 2014 | B39: 30.5 | C39: 30.8 | D39: 31.7 | E39: 31.7
A40: 2015 | B40: 31.6 | C40: 31.6 | D40: 32.2 | E40: 32.2
A41: 2016 | B41: 32.8 | C41: 31.7 | D41: 32.3 | E41: 32.3
A42: 2017 | B42: 33.8 | C42: 32.3 | D42: 32.6 | E42: 33.4
A43: 2018 | B43: 34.1 | C43: 32.2 | D43: 32.5 | E43: 33.9
A44: 2019 | B44: 34.5 | C44: 32 | D44: 32.1 | E44: 33.5
A45: 2020 | B45: 35.4 | C45: 32.8 | D45: 32.8 | E45: 34.3

Sheet Compliance Overview
A2: Year | B2: Total FE Std. | C2: Total FE Performance | D2: DP Std. | E2: DP Performance | F2: IP Std. | G2: IP Performance | H2: LT Std. | I2: LT Performance
A3: 2011 | B3: 27.4 | C3: 29 | D3: 30 | E3: 32.7 | F3: 30.4 | G3: 33.7 | H3: 24.3 | I3: 24.7
A4: 2012 | B4: 29.8 | C4: 30.8 | D4: 32.7 | E4: 34.8 | F4: 33.4 | G4: 36 | H4: 25.3 | I4: 25
A5: 2013 | B5: 30.3 | C5: 31.6 | D5: 33.2 | E5: 36.1 | F5: 33.9 | G5: 36.8 | H5: 25.9 | I5: 25.7
A6: 2014 | B6: 30.5 | C6: 31.7 | D6: 34 | E6: 36.3 | F6: 34.6 | G6: 36.9 | H6: 26.3 | I6: 26.5
A7: 2015 | B7: 31.6 | C7: 32.2 | D7: 35.2 | E7: 37.2 | F7: 35.8 | G7: 37.3 | H7: 27.6 | I7: 27.3
A8: 2016 | B8: 32.8 | C8: 32.3 | D8: 36.5 | E8: 37.3 | F8: 37.4 | G8: 38.1 | H8: 28.8 | I8: 27.4
A9: 2017 | B9: 33.8 | C9: 33.4 | D9: 38.5 | E9: 39.2 | F9: 39.6 | G9: 39.7 | H9: 29.4 | I9: 28.6
A10: 2018 | B10: 34.1 | C10: 33.9 | D10: 39.6 | E10: 41.7 | F10: 40.6 | G10: 39.6 | H10: 30 | I10: 29.4
A11: 2019 | B11: 34.5 | C11: 33.5 | D11: 41.2 | E11: 40.8 | F11: 42.2 | G11: 40.1 | H11: 30.4 | I11: 29.5
A12: 2020 | B12: 35.4 | C12: 34.3 | D12: 42.4 | E12: 43.6 | F12: 44 | G12: 40.7 | H12: 31 | I12: 30.1
